fUST/lending_fUST_20260526
["ID","MTS","AMOUNT","RATE_DAILY","PERIOD"]
[423023318,1779763846000,-655.56,8.493e-05,2]
[423023316,1779763846000,-3423.83,8.493e-05,2]
[423023306,1779763846000,-1025.01,8.493e-05,2]
[423023295,1779763846000,-1734.7,8.493e-05,2]
[423023291,1779763846000,-500.0,8.493e-05,2]
[423023282,1779763846000,-828.44,8.493e-05,2]
[423023299,1779763846000,-762.97,8.493e-05,2]
[423023304,1779763846000,-642.18,8.493e-05,2]
[423023287,1779763846000,-712.5,8.493e-05,2]
[423023281,1779763846000,-1537.28,8.493e-05,2]
[423023285,1779763846000,-500.0,8.493e-05,2]
[423023284,1779763846000,-1012.19,8.493e-05,2]
[423023320,1779763846000,-729.26,8.493e-05,2]
[423023289,1779763846000,-500.0,8.493e-05,2]
[423023308,1779763846000,-1169.75,8.493e-05,2]
[423023293,1779763846000,-500.0,8.493e-05,2]
[423023314,1779763846000,-500.52501496,8.493e-05,2]
[423023312,1779763846000,-616.29,8.493e-05,2]
[423023356,1779763846000,-3928.60947472,8.493e-05,2]
[423023351,1779763846000,-1203.63,8.493e-05,2]
[423023347,1779763846000,-500.0,8.493e-05,2]
[423023349,1779763846000,-1105.42,8.493e-05,2]
[423023345,1779763846000,-500.0,8.493e-05,2]
[423023344,1779763846000,-408.24336493,8.493e-05,2]
[423023341,1779763846000,-1026.06663507,8.493e-05,2]
[423023340,1779763846000,-558.45,8.493e-05,2]
[423023330,1779763846000,-500.0,8.493e-05,2]
[423023328,1779763846000,-3326.4,8.493e-05,2]
[423023353,1779763846000,-1785.06504579,8.493e-05,2]
[423023326,1779763846000,-1802.96,8.493e-05,2]
[423023324,1779763846000,-500.0,8.493e-05,2]
[423023334,1779763846000,-574.41,8.493e-05,2]
[423023332,1779763846000,-1008.36,8.493e-05,2]
[423023322,1779763846000,-1896.45,8.493e-05,2]
[423023337,1779763846000,-500.0,8.493e-05,2]
[423023513,1779763848000,-1572.82820681,8.493e-05,2]
[423023515,1779763848000,-6093.46727268,8.493e-05,2]
[423023519,1779763848000,-647.07,8.493e-05,2]
[423023517,1779763848000,-500.0,8.493e-05,2]
[423023523,1779763848000,-1825.86445858,8.493e-05,2]
[423023521,1779763848000,-500.0,8.493e-05,2]
[423023611,1779763849000,-377.62082493,8.767e-05,2]
[423023625,1779763849000,-500.0,8.767e-05,2]
[423023627,1779763849000,-500.0,8.767e-05,2]
[423023615,1779763849000,-500.0,8.767e-05,2]
[423023618,1779763849000,-500.0,8.767e-05,2]
[423023616,1779763849000,-500.0,8.767e-05,2]
[423023631,1779763849000,-500.0,8.767e-05,2]
[423023613,1779763849000,-500.0,8.767e-05,2]
[423023620,1779763849000,-965.96,8.767e-05,2]
[423023635,1779763849000,-679.95,8.767e-05,2]
[423023637,1779763849000,-956.99,8.767e-05,2]
[423023639,1779763849000,-797.54,8.767e-05,2]
[423023646,1779763849000,-197.25531902,8.767e-05,2]
[423023644,1779763849000,-500.0,8.767e-05,2]
[423023652,1779763849000,-500.0,8.767e-05,2]
[423023648,1779763849000,-515.73,8.767e-05,2]
[423023623,1779763849000,-576.28040126,8.767e-05,2]
[423023622,1779763849000,-1907.9466,8.767e-05,2]
[423023583,1779763849000,-194.56686313,8.661e-05,7]
[423023601,1779763849000,-500.0,8.767e-05,2]
[423023577,1779763849000,-163.59315893,8.661e-05,7]
[423023581,1779763849000,-168.97065689,8.661e-05,2]
[423023579,1779763849000,-155.57776886,8.661e-05,7]
[423023573,1779763849000,-500.0,8.493e-05,2]
[423023575,1779763849000,-213.50354347,8.593e-05,5]
[423023570,1779763849000,-761.80554142,8.493e-05,2]
[423023571,1779763849000,-500.0,8.493e-05,2]
[423023633,1779763849000,-515.61,8.767e-05,2]
[423023585,1779763849000,-176.04704181,8.661e-05,7]
[423023587,1779763849000,-192.93836871,8.661e-05,7]
[423023595,1779763849000,-800.0,8.745e-05,2]
[423023597,1779763849000,-800.0,8.763e-05,2]
[423023590,1779763849000,-163.13236267,8.661e-05,2]
[423023591,1779763849000,-794.0,8.7e-05,2]
[423023593,1779763849000,-833.61670465,8.711e-05,2]
[423023604,1779763849000,-500.0,8.767e-05,2]
[423023607,1779763849000,-368.49190833,8.767e-05,2]
[423023610,1779763849000,-506.58,8.767e-05,2]
[423023650,1779763849000,-500.0,8.767e-05,2]
[423023629,1779763849000,-500.0,8.767e-05,2]
[423023641,1779763849000,-640.2,8.767e-05,2]
[423023643,1779763849000,-500.0,8.767e-05,2]
[423023711,1779763849000,-655.56,8.767e-05,2]
[423023713,1779763849000,-729.26,8.767e-05,2]
[423023715,1779763849000,-1896.45,8.767e-05,2]
[423023703,1779763849000,-1169.75,8.767e-05,2]
[423023699,1779763849000,-642.18,8.767e-05,2]
[423023717,1779763849000,-500.0,8.767e-05,2]
[423023701,1779763849000,-1025.01,8.767e-05,2]
[423023705,1779763849000,-761.89,8.767e-05,2]
[423023719,1779763849000,-1802.96,8.767e-05,2]
[423023707,1779763849000,-616.29,8.767e-05,2]
[423023721,1779763849000,-3326.4,8.767e-05,2]
[423023709,1779763849000,-3423.83,8.767e-05,2]
[423023725,1779763849000,-1008.36,8.767e-05,2]
[423023723,1779763849000,-586.03057593,8.767e-05,2]
[423023727,1779763849000,-574.41,8.767e-05,2]
[423023729,1779763849000,-36.320331,8.767e-05,2]
[423023687,1779763849000,-500.0,8.767e-05,2]
[423023693,1779763849000,-1734.7,8.767e-05,2]
[423023697,1779763849000,-762.97,8.767e-05,2]
[423023691,1779763849000,-500.0,8.767e-05,2]
[423023656,1779763849000,-500.0,8.767e-05,2]
[423023654,1779763849000,-500.0,8.767e-05,2]
[423023658,1779763849000,-654.32,8.767e-05,2]
[423023660,1779763849000,-157.25860506,8.767e-05,2]
[423023666,1779763849000,-501.12,8.767e-05,2]
[423023662,1779763849000,-500.0,8.767e-05,2]
[423023695,1779763849000,-843.75,8.767e-05,2]
[423023664,1779763849000,-667.66,8.767e-05,2]
[423023670,1779763849000,-500.0,8.767e-05,2]
[423023673,1779763849000,-569.84,8.767e-05,2]
[423023668,1779763849000,-500.0,8.767e-05,2]
[423023675,1779763849000,-798.25,8.767e-05,2]
[423023679,1779763849000,-828.44,8.767e-05,2]
[423023677,1779763849000,-1537.28,8.767e-05,2]
[423023681,1779763849000,-1012.19,8.767e-05,2]
[423023683,1779763849000,-500.0,8.767e-05,2]
[423023685,1779763849000,-712.5,8.767e-05,2]
[423023689,1779763849000,-500.0,8.767e-05,2]
[423023672,1779763849000,-500.0,8.767e-05,2]
[423024137,1779764885000,9827.178911,6.506e-05,10]
[423024139,1779765016000,-5000.0,6.146e-05,2]
[423024140,1779765017000,-181.262175,6.208e-05,2]
[423024141,1779765017000,-200.0,6.379e-05,2]
[423024142,1779765017000,-286.87,6.379e-05,7]
[423024145,1779765017000,-200.0,6.505e-05,2]
[423024144,1779765017000,-500.0,6.505e-05,2]
[423024146,1779765017000,-500.0,6.505e-05,2]
[423024148,1779765017000,-252.34642123,6.505e-05,2]
[423024149,1779765017000,-2079.52140377,6.506e-05,10]
[423024147,1779765017000,-500.0,6.505e-05,2]
[423024150,1779765017000,-4681.84278249,6.506e-05,10]
[423024143,1779765017000,-300.0,6.505e-05,2]
[423024151,1779765018000,-318.15721751,6.558e-05,2]
[423024155,1779765018000,-179.46457805,6.648e-05,2]
[423024152,1779765018000,-1276.67543947,6.558e-05,2]
[423024153,1779765018000,-1594.83265698,6.558e-05,2]
[423024154,1779765018000,-166.66,6.572e-05,2]
[423024157,1779765018000,-500.0,6.657e-05,2]
[423024156,1779765018000,-500.0,6.657e-05,2]
[423024158,1779765018000,-500.0,6.657e-05,2]
[423024160,1779765018000,-217.6326745,6.657e-05,2]
[423024161,1779765018000,-500.0,6.657e-05,2]
[423024164,1779765018000,-500.0,6.657e-05,2]
[423024163,1779765018000,-500.0,6.657e-05,2]
[423024162,1779765018000,-500.0,6.657e-05,2]
[423024166,1779765018000,-500.0,6.657e-05,2]
[423024165,1779765018000,-500.0,6.657e-05,2]
[423024167,1779765018000,-185.55170338,6.657e-05,2]
[423024168,1779765018000,-500.0,6.657e-05,2]
[423024159,1779765018000,-282.3673255,6.657e-05,2]
[423024169,1779765019000,-1096.81562212,6.658e-05,2]
[423024171,1779765019000,-2961.48260001,6.658e-05,2]
[423024170,1779765019000,-2038.51739999,6.658e-05,2]
[423024174,1779765019000,-1339.19990549,6.758e-05,2]
[423024173,1779765019000,-3486.94967241,6.758e-05,2]
[423024175,1779765019000,-2147.74976692,6.758e-05,2]
[423024176,1779765019000,-2852.25023308,6.858e-05,2]
[423024172,1779765019000,-173.8504221,6.658e-05,2]
[423024179,1779765020000,-222.62252218,6.958e-05,2]
[423024178,1779765020000,-3814.81385545,6.858e-05,2]
[423024177,1779765020000,-962.56362237,6.858e-05,2]
[423024181,1779765022000,-1384.05619937,6.958e-05,2]
[423024180,1779765022000,-3615.94380063,6.958e-05,2]
[423024206,1779765032000,-500.0,7.514e-05,2]
[423024204,1779765032000,-500.0,7.514e-05,2]
[423024202,1779765032000,-46.71255529,7.514e-05,2]
[423024205,1779765032000,-479.88619237,7.514e-05,2]
[423024201,1779765032000,-453.28744471,7.514e-05,2]
[423024200,1779765032000,-500.0,7.514e-05,2]
[423024194,1779765032000,-27.84016137,7.059e-05,2]
[423024199,1779765032000,-500.0,7.514e-05,2]
[423024197,1779765032000,-477.64334108,7.21e-05,2]
[423024195,1779765032000,-201.99416711,7.059e-05,2]
[423024193,1779765032000,-166.66,7.019e-05,2]
[423024192,1779765032000,-2454.51012344,6.958e-05,2]
[423024203,1779765032000,-500.0,7.514e-05,2]
[423024196,1779765032000,-207.0,7.156e-05,2]
[423024207,1779765032000,-500.0,7.514e-05,2]
[423024198,1779765032000,-166.66,7.466e-05,2]
[423024209,1779765032000,-4190.18297321,7.515e-05,2]
[423024219,1779765032000,-41068.5297035,7.719e-05,2]
[423024217,1779765032000,-4345.9693974,7.605e-05,2]
[423024220,1779765032000,-500.0,7.514e-05,2]
[423024222,1779765032000,-3240.55941701,7.719e-05,2]
[423024221,1779765032000,-500.0,7.514e-05,2]
[423024218,1779765032000,-256.28,7.663e-05,2]
[423024215,1779765032000,-6652.20995917,7.587e-05,2]
[423024208,1779765032000,-4190.18297321,7.515e-05,2]
[423024216,1779765032000,-9054.39688888,7.587e-05,2]
[423024211,1779765032000,-184.78360998,7.587e-05,2]
[423024210,1779765032000,-1663.05248979,7.587e-05,2]
[423024214,1779765032000,-4619.59024943,7.587e-05,2]
[423024213,1779765032000,-2956.53775963,7.587e-05,2]
[423024212,1779765032000,-739.13443991,7.587e-05,2]
[423024223,1779765032000,-390.95069995,7.719e-05,2]
[423024227,1779765039000,-500.0,7.514e-05,2]
[423024229,1779765039000,-500.0,7.514e-05,2]
[423024225,1779765039000,-2405.4822023,7.439e-05,2]
[423024232,1779765039000,-6778.79294667,7.719e-05,2]
[423024233,1779765039000,-553019.85536508,7.719e-05,2]
[423024230,1779765039000,-43183.03085752,7.719e-05,2]
[423024231,1779765039000,-2028.97951315,7.719e-05,2]
[423024264,1779765220000,-4760.053,6.858e-05,2]
[423024263,1779765220000,-239.947,6.721e-05,2]
[423024265,1779765221000,-5000.0,6.858e-05,2]
[423024266,1779765222000,-5000.0,6.858e-05,2]
[423024267,1779765223000,-5000.0,6.858e-05,2]
[423024268,1779765224000,-5000.0,6.858e-05,2]
[423024269,1779765225000,-5000.0,6.858e-05,2]
[423024270,1779765226000,-5000.0,6.858e-05,2]
[423024271,1779765227000,-5000.0,6.858e-05,2]
[423024273,1779765228000,-5000.0,6.858e-05,2]
[423024272,1779765228000,-5000.0,6.858e-05,2]
[423024274,1779765229000,-5000.0,6.858e-05,2]
[423024276,1779765231000,-5000.0,6.858e-05,2]
[423024275,1779765231000,-5000.0,6.858e-05,2]
[423024277,1779765232000,-5000.0,6.858e-05,2]
[423024278,1779765233000,-5000.0,6.858e-05,2]
[423024279,1779765234000,-5000.0,6.858e-05,2]
[423024280,1779765235000,-5000.0,6.858e-05,2]
[423024281,1779765236000,-5000.0,6.858e-05,2]
[423024282,1779765237000,-5000.0,6.858e-05,2]
[423024283,1779765238000,-5000.0,6.858e-05,2]
[423024284,1779765239000,-5000.0,6.858e-05,2]
[423024285,1779765240000,-5000.0,6.858e-05,2]
[423024286,1779765241000,-5000.0,6.858e-05,2]
[423024287,1779765242000,-300.0,6.857e-05,2]
[423024288,1779765242000,-4700.0,6.858e-05,2]
[423024289,1779765243000,-5000.0,6.858e-05,2]
[423024290,1779765244000,-5000.0,6.858e-05,2]
[423024291,1779765245000,-5000.0,6.858e-05,2]
[423024292,1779765246000,-5000.0,6.858e-05,2]
[423024293,1779765248000,-5000.0,6.858e-05,2]
[423024294,1779765284000,-151.0,6.652e-05,2]
[423024295,1779765284000,-4849.0,6.655e-05,2]
[423024298,1779765296000,-603.0,6.79e-05,2]
[423024296,1779765296000,-151.0,6.655e-05,2]
[423024297,1779765296000,-5000.0,6.722e-05,2]
[423024300,1779765316000,-5000.0,6.722e-05,2]
[423024303,1779765319000,-303.0,6.857e-05,2]
[423024302,1779765319000,-300.0,6.857e-05,2]
[423024301,1779765319000,-4397.0,6.79e-05,2]
[423024305,1779765320000,-4103.0,6.858e-05,2]
[423024304,1779765320000,-897.0,6.857e-05,2]
[423024306,1779765321000,-5000.0,6.858e-05,2]
[423024307,1779765322000,-5000.0,6.722e-05,2]
[423024308,1779765322000,-5000.0,6.858e-05,2]
[423024309,1779765323000,-5000.0,6.858e-05,2]
[423024310,1779765324000,-151.0,6.586e-05,2]
[423024311,1779765324000,-4849.0,6.858e-05,2]
[423024312,1779765325000,-5000.0,6.858e-05,2]
[423024313,1779765326000,-5000.0,6.858e-05,2]
[423024315,1779765330000,-5000.0,6.858e-05,2]
[423024316,1779765331000,-5000.0,6.858e-05,2]
[423024317,1779765332000,-5000.0,6.858e-05,2]
[423024318,1779765333000,-5000.0,6.858e-05,2]
[423024319,1779765334000,-5000.0,6.858e-05,2]
[423024320,1779765369000,-2835.44149253,6.521e-05,2]
[423024321,1779765369000,-2164.55850747,6.587e-05,2]
[423024325,1779765380000,-290.50121778,6.654e-05,2]
[423024326,1779765380000,-731.05728969,6.789e-05,2]
[423024324,1779765380000,-500.0,6.654e-05,2]
[423024322,1779765380000,-2835.44149253,6.587e-05,2]
[423024323,1779765380000,-300.0,6.653e-05,2]
[423024327,1779765420000,-151.0,6.5e-05,2]
[423024329,1779765420000,-1049.0,6.789e-05,2]
[423024328,1779765420000,-5000.0,6.721e-05,2]
[423024332,1779765441000,-5000.0,6.721e-05,2]
[423024339,1779765637000,-500.0,6.434e-05,2]
[423024338,1779765637000,-448.30251763,6.434e-05,2]
[423024336,1779765637000,-500.0,6.434e-05,2]
[423024335,1779765637000,-500.0,6.434e-05,2]
[423024337,1779765637000,-500.0,6.434e-05,2]
[423024340,1779765637000,-500.0,6.434e-05,2]
[423024345,1779765638000,-351.69748237,6.434e-05,2]
[423024344,1779765638000,-500.0,6.434e-05,2]
[423024342,1779765638000,-500.0,6.434e-05,2]
[423024343,1779765638000,-500.0,6.434e-05,2]
[423024341,1779765638000,-500.0,6.434e-05,2]
[423024346,1779765656000,500206.10528902,0.00015,30]
[423024348,1779765678000,-181.0,6.433e-05,2]
[423024347,1779765678000,-5000.0,6.37e-05,2]
[423024349,1779765705000,-5000.0,6.369e-05,2]
[423024350,1779765705000,-119.0,6.433e-05,2]
[423024352,1779765705000,-500.0,6.434e-05,2]
[423024351,1779765705000,-148.30251763,6.434e-05,2]
[423024353,1779765705000,-82.69748237,6.434e-05,2]
[423024355,1779765729000,-159.0,6.37e-05,2]
[423024354,1779765729000,-5000.0,6.306e-05,2]
[423024356,1779765747000,-5000.0,6.306e-05,2]
[423024357,1779765772000,-5000.0,6.306e-05,2]
[423024358,1779765772000,-1779.0,6.37e-05,2]
[423024360,1779765797000,-4403.0,6.306e-05,2]
[423024364,1779765861000,-597.0,6.306e-05,2]
[423024369,1779765949000,-5000.0,6.243e-05,2]
[423024371,1779765949000,-4840.9018,6.306e-05,2]
[423024370,1779765949000,-159.0982,6.305e-05,2]
[423024373,1779765955000,-300.0,6.369e-05,2]
[423024372,1779765955000,-159.0982,6.306e-05,2]
[423024374,1779765955000,-300.0,6.369e-05,2]
[423024375,1779765956000,-1200.0,6.369e-05,2]
[423024378,1779766042000,-4700.0,6.242e-05,2]
[423024377,1779766042000,-300.0,6.241e-05,2]
[423024379,1779766043000,-5000.0,6.242e-05,2]
[423024380,1779766044000,-1970.85087284,6.242e-05,2]
[423024382,1779766044000,-500.0,6.242e-05,2]
[423024381,1779766044000,-500.0,6.242e-05,2]
[423024383,1779766044000,-500.0,6.242e-05,2]
[423024386,1779766044000,-529.14912716,6.242e-05,2]
[423024384,1779766044000,-500.0,6.242e-05,2]
[423024385,1779766044000,-500.0,6.242e-05,2]
[423024397,1779766045000,-464.46995694,6.242e-05,2]
[423024395,1779766045000,-500.0,6.242e-05,2]
[423024396,1779766045000,-500.0,6.242e-05,2]
[423024393,1779766045000,-500.0,6.242e-05,2]
[423024391,1779766045000,-500.0,6.242e-05,2]
[423024394,1779766045000,-500.0,6.242e-05,2]
[423024390,1779766045000,-500.0,6.242e-05,2]
[423024388,1779766045000,-500.0,6.242e-05,2]
[423024389,1779766045000,-500.0,6.242e-05,2]
[423024387,1779766045000,-35.53004306,6.242e-05,2]
[423024392,1779766045000,-500.0,6.242e-05,2]
[423024402,1779766046000,-500.0,6.242e-05,2]
[423024399,1779766046000,-500.0,6.242e-05,2]
[423024400,1779766046000,-500.0,6.242e-05,2]
[423024398,1779766046000,-35.53004306,6.242e-05,2]
[423024403,1779766046000,-500.0,6.242e-05,2]
[423024401,1779766046000,-500.0,6.242e-05,2]
[423024405,1779766046000,-500.0,6.242e-05,2]
[423024408,1779766046000,-464.46995694,6.242e-05,2]
[423024407,1779766046000,-500.0,6.242e-05,2]
[423024406,1779766046000,-500.0,6.242e-05,2]
[423024404,1779766046000,-500.0,6.242e-05,2]
[423024412,1779766047000,-500.0,6.242e-05,2]
[423024413,1779766047000,-500.0,6.242e-05,2]
[423024410,1779766047000,-500.0,6.242e-05,2]
[423024411,1779766047000,-500.0,6.242e-05,2]
[423024409,1779766047000,-35.53004306,6.242e-05,2]
[423024414,1779766048000,-500.0,6.242e-05,2]
[423024415,1779766048000,-500.0,6.242e-05,2]
[423024416,1779766048000,-500.0,6.242e-05,2]
[423024419,1779766048000,-464.46995694,6.242e-05,2]
[423024418,1779766048000,-500.0,6.242e-05,2]
[423024417,1779766048000,-500.0,6.242e-05,2]
[423024420,1779766049000,-35.53004306,6.242e-05,2]
[423024421,1779766049000,-500.0,6.242e-05,2]
[423024424,1779766049000,-500.0,6.242e-05,2]
[423024423,1779766049000,-568.836908,6.242e-05,2]
[423024422,1779766049000,-500.0,6.242e-05,2]
[423024429,1779766049000,-500.0,6.242e-05,2]
[423024427,1779766049000,-500.0,6.242e-05,2]
[423024428,1779766049000,-500.0,6.242e-05,2]
[423024426,1779766049000,-500.0,6.242e-05,2]
[423024430,1779766049000,-395.63304894,6.242e-05,2]
[423024425,1779766049000,-500.0,6.242e-05,2]
[423024431,1779766050000,-104.36695106,6.242e-05,2]
[423024433,1779766050000,-500.0,6.242e-05,2]
[423024432,1779766050000,-250.0,6.242e-05,2]
[423024435,1779766050000,-500.0,6.242e-05,2]
[423024436,1779766050000,-500.0,6.242e-05,2]
[423024437,1779766050000,-500.0,6.242e-05,2]
[423024438,1779766050000,-500.0,6.242e-05,2]
[423024440,1779766050000,-500.0,6.242e-05,2]
[423024439,1779766050000,-500.0,6.242e-05,2]
[423024442,1779766050000,-145.63304894,6.242e-05,2]
[423024441,1779766050000,-500.0,6.242e-05,2]
[423024434,1779766050000,-500.0,6.242e-05,2]
[423024443,1779766051000,-354.36695106,6.242e-05,2]
[423024445,1779766051000,-4145.63304894,6.243e-05,2]
[423024444,1779766051000,-500.0,6.242e-05,2]
[423024447,1779766052000,-4145.63304894,6.306e-05,2]
[423024446,1779766052000,-854.36695106,6.243e-05,2]
[423024448,1779766053000,-854.36695106,6.306e-05,2]
[423024449,1779766055000,1466.92856258,6.181e-05,2]
[423024451,1779766187000,-328.53569433,5.52e-05,2]
[423024452,1779766207000,-471.05990285,5.52e-05,2]
[423024453,1779766227000,-500.0,5.52e-05,2]
[423024476,1779766231000,-2516.52118907,5.52e-05,2]
[423024474,1779766231000,-808.52906721,5.52e-05,2]
[423024472,1779766231000,-382.505,5.52e-05,2]
[423024470,1779766231000,-2026.32981004,5.52e-05,2]
[423024478,1779766231000,-300.0,6.305e-05,2]
[423024481,1779766231000,-500.0,6.305e-05,2]
[423024483,1779766231000,-353.99105602,6.305e-05,2]
[423024480,1779766231000,-1200.0,6.305e-05,2]
[423024493,1779766231000,-500.0,6.305e-05,2]
[423024487,1779766231000,-500.0,6.305e-05,2]
[423024495,1779766231000,-500.0,6.305e-05,2]
[423024485,1779766231000,-212.82916646,6.305e-05,2]
[423024491,1779766231000,-500.0,6.305e-05,2]
[423024497,1779766231000,-323.38454212,6.305e-05,2]
[423024499,1779766231000,-176.61545788,6.305e-05,2]
[423024501,1779766231000,-151.37511759,6.305e-05,2]
[423024504,1779766231000,-253.79742085,6.305e-05,2]
[423024489,1779766231000,-500.0,6.305e-05,2]
[423024701,1779766248000,-124.16526062,6.305e-05,2]
[423024705,1779766248000,-500.0,6.305e-05,2]
[423024704,1779766248000,-500.0,6.305e-05,2]
[423024699,1779766248000,-423.7608578,6.305e-05,2]
[423024698,1779766248000,-76.2391422,6.305e-05,2]
[423024702,1779766248000,-500.0,6.305e-05,2]
[423024695,1779766248000,-500.0,6.305e-05,2]
[423024707,1779766248000,-26.19674796,6.305e-05,2]
[423024697,1779766248000,-381.8836908,6.305e-05,2]
[423024694,1779766248000,-500.0,6.305e-05,2]
[423024693,1779766248000,-94.82746156,6.305e-05,2]
[423024700,1779766248000,-375.83473938,6.305e-05,2]
[423024696,1779766248000,-500.0,6.305e-05,2]
[423024706,1779766248000,-473.80325204,6.305e-05,2]
[423024721,1779766248000,-429.88157211,6.619e-05,2]
[423024708,1779766248000,-3889.28734182,6.306e-05,2]
[423024703,1779766248000,-500.0,6.305e-05,2]
[423024719,1779766248000,-476.10863222,6.619e-05,2]
[423024718,1779766248000,-342598.49276006,6.619e-05,2]
[423024713,1779766248000,-181.262175,6.411e-05,2]
[423024720,1779766248000,-276235.30673982,6.619e-05,2]
[423024714,1779766248000,-151.0,6.5e-05,2]
[423024715,1779766248000,-151.0,6.5e-05,2]
[423024710,1779766248000,-391.3516935,6.37e-05,2]
[423024716,1779766248000,-38338.54961943,6.5e-05,2]
[423024711,1779766248000,-510.75124258,6.379e-05,2]
[423024712,1779766248000,-191.958,6.388e-05,2]
[423024709,1779766248000,-1110.71265818,6.306e-05,2]
[423024717,1779766248000,-151.0,6.585e-05,2]
[423024722,1779766250000,-203.32590983,6.619e-05,2]
[423024730,1779766261000,-382.72366072,6.619e-05,2]
[423024734,1779766261000,-6874.488024,6.655e-05,2]
[423024735,1779766261000,-157.25860506,6.655e-05,2]
[423024732,1779766261000,-1405.14528569,6.619e-05,2]
[423024731,1779766261000,-657.48855298,6.619e-05,2]
[423024729,1779766261000,-15630.2,6.619e-05,2]
[423024724,1779766261000,-3770.77574739,6.619e-05,2]
[423024728,1779766261000,-132079.50470029,6.619e-05,2]
[423024727,1779766261000,-1592.250103,6.619e-05,2]
[423024726,1779766261000,-78900.88015877,6.619e-05,2]
[423024725,1779766261000,-431.83675393,6.619e-05,2]
[423024723,1779766261000,-283.87210497,6.619e-05,2]
[423024736,1779766261000,-1448.9691235,6.842e-05,2]
[423024740,1779766261000,-300.0,6.978e-05,2]
[423024746,1779766261000,-300.0,6.978e-05,2]
[423024741,1779766261000,-300.0,6.978e-05,2]
[423024738,1779766261000,-300.0,6.978e-05,2]
[423024749,1779766261000,-300.0,6.978e-05,2]
[423024750,1779766261000,-300.0,6.978e-05,2]
[423024745,1779766261000,-300.0,6.978e-05,2]
[423024747,1779766261000,-300.0,6.978e-05,2]
[423024748,1779766261000,-300.0,6.978e-05,2]
[423024751,1779766261000,-300.0,6.978e-05,2]
[423024743,1779766261000,-300.0,6.978e-05,2]
[423024739,1779766261000,-300.0,6.978e-05,2]
[423024733,1779766261000,-254452.73397435,6.619e-05,2]
[423024744,1779766261000,-300.0,6.978e-05,2]
[423024742,1779766261000,-300.0,6.978e-05,2]
[423024737,1779766261000,-300.0,6.978e-05,2]
[423024796,1779766262000,-500.0,8.219e-05,2]
[423024788,1779766262000,-500.0,8.219e-05,2]
[423024787,1779766262000,-500.0,8.219e-05,2]
[423024794,1779766262000,-174.70671524,8.219e-05,2]
[423024793,1779766262000,-500.0,8.219e-05,2]
[423024786,1779766262000,-500.0,8.219e-05,2]
[423024782,1779766262000,-500.0,8.219e-05,2]
[423024780,1779766262000,-594.95,8.219e-05,2]
[423024781,1779766262000,-1026.26,8.219e-05,2]
[423024798,1779766262000,-1345.12,8.219e-05,2]
[423024792,1779766262000,-500.0,8.219e-05,2]
[423024799,1779766262000,-1517.86,8.219e-05,2]
[423024811,1779766262000,-708.34,8.219e-05,2]
[423024797,1779766262000,-500.0,8.219e-05,2]
[423024791,1779766262000,-572.53,8.219e-05,2]
[423024789,1779766262000,-500.0,8.219e-05,2]
[423024806,1779766262000,-896.89,8.219e-05,2]
[423024790,1779766262000,-464.41736564,8.219e-05,2]
[423024776,1779766262000,-539.25,8.219e-05,2]
[423024801,1779766262000,-500.0,8.219e-05,2]
[423024802,1779766262000,-738.29,8.219e-05,2]
[423024800,1779766262000,-927.33,8.219e-05,2]
[423024812,1779766262000,-594.44,8.219e-05,2]
[423024804,1779766262000,-665.1,8.219e-05,2]
[423024808,1779766262000,-500.0,8.219e-05,2]
[423024803,1779766262000,-561.91,8.219e-05,2]
[423024795,1779766262000,-500.0,8.219e-05,2]
[423024783,1779766262000,-837.36,8.219e-05,2]
[423024785,1779766262000,-500.0,8.219e-05,2]
[423024777,1779766262000,-500.0,8.219e-05,2]
[423024756,1779766262000,-720.0,7.693e-05,2]
[423024757,1779766262000,-160.0,7.864e-05,2]
[423024758,1779766262000,-943.04642146,7.912e-05,2]
[423024755,1779766262000,-456.643312,7.661e-05,2]
[423024754,1779766262000,-32540.8293374,7.6e-05,2]
[423024753,1779766262000,-1070.3238171,7.582e-05,2]
[423024752,1779766262000,-600.0,6.993e-05,2]
[423024759,1779766262000,-3768.41350016,7.912e-05,2]
[423024761,1779766262000,-152.0,8.103e-05,7]
[423024762,1779766262000,-174.685,8.114e-05,2]
[423024763,1779766262000,-1414.0,8.114e-05,2]
[423024764,1779766262000,-586.164,8.114e-05,2]
[423024778,1779766262000,-500.0,8.219e-05,2]